[Event "Live Chess"]
[Site "Chess.com"]
[Date "2023.05.20"]
[Round "-"]
[White "SupremeTactician"]
[Black "TheSmoulderingMaster"]
[Result "1-0"]
[WhiteElo "2409"]
[BlackElo "1792"]
[TimeControl "300"]
[EndTime "9:52:26 PDT"]
[Termination "SupremeTactician won by resignation"]

1. e4 {[%clk 0:04:56.7]} 1... c5 {[%clk 0:04:58.8]} 2. Nf3 {[%clk 0:04:55.9]}
2... d6 {[%clk 0:04:58]} 3. d4 {[%clk 0:04:54.2]} 3... cxd4 {[%clk 0:04:57.2]}
4. Nxd4 {[%clk 0:04:54.1]} 4... Nf6 {[%clk 0:04:56.1]} 5. Nc3 {[%clk 0:04:53.3]}
5... g6 {[%clk 0:04:55.6]} 6. Be2 {[%clk 0:04:50.6]} 6... Bg7 {[%clk 0:04:54.8]}
7. O-O {[%clk 0:04:49.7]} 7... O-O {[%clk 0:04:54.1]} 8. h3 {[%clk 0:04:47]}
8... Nc6 {[%clk 0:04:53.3]} 9. Nxc6 {[%clk 0:04:46.3]} 9... bxc6 {[%clk
0:04:52]} 10. f4 {[%clk 0:04:46]} 10... Qb6+ {[%clk 0:04:48.6]} 11. Kh1 {[%clk
0:04:44.5]} 11... Bd7 {[%clk 0:04:46]} 12. e5 {[%clk 0:04:40.9]} 12... Ne8
{[%clk 0:04:40.5]} 13. exd6 {[%clk 0:04:24.5]} 13... Nxd6 {[%clk 0:04:39.1]} 14.
Na4 {[%clk 0:04:19.1]} 14... Qd4 {[%clk 0:04:27.3]} 15. Qxd4 {[%clk 0:04:16.8]}
15... Bxd4 {[%clk 0:04:26.4]} 16. c3 {[%clk 0:04:16.6]} 16... Bf6 {[%clk
0:04:23.2]} 17. Nc5 {[%clk 0:04:15.4]} 17... Bf5 {[%clk 0:04:20.2]} 18. g4
{[%clk 0:04:12.9]} 18... Bc2 {[%clk 0:04:12.9]} 19. Bf3 {[%clk 0:04:02.1]} 19...
e5 {[%clk 0:03:59.2]} 20. Nd7 {[%clk 0:03:58]} 20... Be7 {[%clk 0:03:54.7]} 21.
Nxf8 {[%clk 0:03:55.4]} 21... Rxf8 {[%clk 0:03:54.6]} 22. fxe5 {[%clk
0:03:54.8]} 22... Nc4 {[%clk 0:03:53.3]} 23. Bxc6 {[%clk 0:03:48.8]} 23... Nxe5
{[%clk 0:03:51.1]} 24. Bg2 {[%clk 0:03:48]} 24... Bd3 {[%clk 0:03:47]} 25. Re1
{[%clk 0:03:44.8]} 25... f6 {[%clk 0:03:43.1]} 26. Bf4 {[%clk 0:03:43.3]} 26...
Bd6 {[%clk 0:03:41.5]} 27. Rad1 {[%clk 0:03:41.9]} 27... Rd8 {[%clk 0:03:28.6]}
28. Bd5+ {[%clk 0:03:32.7]} 28... Kg7 {[%clk 0:03:26.9]} 29. Bxe5 {[%clk
0:03:32]} 29... Bxe5 {[%clk 0:03:25.5]} 30. Rxd3 {[%clk 0:03:31.5]} 1-0

[Event "Live Chess"]
[Site "Chess.com"]
[Date "2023.05.20"]
[Round "-"]
[White "Jio85"]
[Black "guptarayan"]
[Result "1-0"]
[WhiteElo "2025"]
[BlackElo "587"]
[TimeControl "300"]
[EndTime "9:52:27 PDT"]
[Termination "Jio85 won by resignation"]

1. e4 {[%clk 0:04:58.4]} 1... e5 {[%clk 0:04:59.2]} 2. Nf3 {[%clk 0:04:57.3]}
2... Nc6 {[%clk 0:04:56.8]} 3. Bc4 {[%clk 0:04:56.6]} 3... f5 {[%clk 0:04:52.6]}
4. d4 {[%clk 0:04:48.6]} 4... fxe4 {[%clk 0:04:47.7]} 5. Nxe5 {[%clk 0:04:46.3]}
5... Nxe5 {[%clk 0:04:45.6]} 6. dxe5 {[%clk 0:04:45.2]} 6... d5 {[%clk
0:04:38.1]} 7. Bxd5 {[%clk 0:04:42.5]} 7... c6 {[%clk 0:04:35.4]} 8. Bf7+ {[%clk
0:04:36.9]} 8... Ke7 {[%clk 0:04:30.3]} 9. Bg5+ {[%clk 0:04:35]} 9... Nf6 {[%clk
0:04:26.4]} 10. exf6+ {[%clk 0:04:33.9]} 10... gxf6 {[%clk 0:04:24.6]} 11. Bxf6+
{[%clk 0:04:33.3]} 11... Kxf6 {[%clk 0:04:22.5]} 12. Qxd8+ {[%clk 0:04:33.2]}
12... Kxf7 {[%clk 0:04:21.2]} 13. Nc3 {[%clk 0:04:28.7]} 13... Bg7 {[%clk
0:04:16.2]} 14. Qc7+ {[%clk 0:04:25.4]} 1-0

[Event "Live Chess"]
[Site "Chess.com"]
[Date "2023.05.20"]
[Round "-"]
[White "CheckThis4"]
[Black "Tushinskiy"]
[Result "1-0"]
[WhiteElo "2541"]
[BlackElo "2093"]
[TimeControl "300"]
[EndTime "9:52:34 PDT"]
[Termination "CheckThis4 won by resignation"]

1. c4 {[%clk 0:04:52.8]} 1... c5 {[%clk 0:04:54.4]} 2. Nf3 {[%clk 0:04:50.5]}
2... d6 {[%clk 0:04:54.3]} 3. Nc3 {[%clk 0:04:45.3]} 3... Nc6 {[%clk 0:04:54.2]}
4. d4 {[%clk 0:04:37.8]} 4... Nf6 {[%clk 0:04:54.1]} 5. d5 {[%clk 0:04:36]} 5...
g6 {[%clk 0:04:54]} 6. dxc6 {[%clk 0:04:34.9]} 6... bxc6 {[%clk 0:04:51]} 7. g3
{[%clk 0:04:33.5]} 7... Bg7 {[%clk 0:04:50]} 8. Bg2 {[%clk 0:04:32.9]} 8... O-O
{[%clk 0:04:49.8]} 9. O-O {[%clk 0:04:32.1]} 9... Bb7 {[%clk 0:04:47.6]} 10. Bg5
{[%clk 0:04:28.9]} 10... Qb6 {[%clk 0:04:45.5]} 11. Qd2 {[%clk 0:04:27]} 11...
Rad8 {[%clk 0:04:44.1]} 12. Bh6 {[%clk 0:04:11.3]} 12... Bxh6 {[%clk 0:04:41.4]}
13. Qxh6 {[%clk 0:04:10.3]} 13... Qxb2 {[%clk 0:04:40.8]} 14. Rac1 {[%clk
0:04:05.2]} 14... Ba6 {[%clk 0:04:39]} 15. Ng5 {[%clk 0:04:02]} 1-0

[Event "Live Chess"]
[Site "Chess.com"]
[Date "2023.05.20"]
[Round "-"]
[White "JackRudd"]
[Black "Olisingapore"]
[Result "1-0"]
[WhiteElo "2386"]
[BlackElo "1947"]
[TimeControl "300"]
[EndTime "9:52:36 PDT"]
[Termination "JackRudd won by resignation"]

1. e4 {[%clk 0:04:59.2]} 1... c5 {[%clk 0:04:58.5]} 2. Nf3 {[%clk 0:04:57.8]}
2... d6 {[%clk 0:04:57.7]} 3. d4 {[%clk 0:04:56.7]} 3... cxd4 {[%clk 0:04:57.6]}
4. Nxd4 {[%clk 0:04:55.8]} 4... Nf6 {[%clk 0:04:57.3]} 5. Nc3 {[%clk 0:04:55.1]}
5... a6 {[%clk 0:04:56.9]} 6. Bc4 {[%clk 0:04:53.5]} 6... e6 {[%clk 0:04:56.1]}
7. Bb3 {[%clk 0:04:51.5]} 7... Be7 {[%clk 0:04:55.7]} 8. f4 {[%clk 0:04:49]}
8... b5 {[%clk 0:04:54]} 9. O-O {[%clk 0:04:47.7]} 9... O-O {[%clk 0:04:51.3]}
10. f5 {[%clk 0:04:42.6]} 10... e5 {[%clk 0:04:49.4]} 11. Nf3 {[%clk 0:04:41.6]}
11... Bb7 {[%clk 0:04:48.1]} 12. Nd5 {[%clk 0:04:39.9]} 12... Nxe4 {[%clk
0:04:14.1]} 13. a4 {[%clk 0:04:35.9]} 13... Nd7 {[%clk 0:04:09.2]} 14. Be3
{[%clk 0:04:21.4]} 14... Ndf6 {[%clk 0:03:59.7]} 15. Bb6 {[%clk 0:04:16.4]}
15... Qd7 {[%clk 0:03:42.5]} 16. Nxe7+ {[%clk 0:04:15.1]} 16... Qxe7 {[%clk
0:03:40.5]} 17. c3 {[%clk 0:04:11.2]} 17... Rfc8 {[%clk 0:03:35.3]} 18. Qe2
{[%clk 0:04:06.7]} 18... d5 {[%clk 0:03:23.6]} 19. axb5 {[%clk 0:04:00.8]} 19...
axb5 {[%clk 0:03:19.4]} 20. Qxb5 {[%clk 0:03:59.6]} 20... Nd6 {[%clk 0:03:05.2]}
21. Qb4 {[%clk 0:03:55.8]} 21... Nd7 {[%clk 0:02:57]} 22. Bf2 {[%clk 0:03:49.3]}
22... Qf6 {[%clk 0:02:44.4]} 23. Bh4 {[%clk 0:03:47.3]} 23... Qxf5 {[%clk
0:02:41.1]} 24. Qxd6 {[%clk 0:03:46.5]} 24... Nf6 {[%clk 0:02:27.5]} 25. Nxe5
{[%clk 0:03:43.1]} 25... Rxa1 {[%clk 0:02:09.3]} 26. Rxa1 {[%clk 0:03:41.4]}
26... Re8 {[%clk 0:02:05.3]} 27. Bxf6 {[%clk 0:03:38.8]} 27... Qxf6 {[%clk
0:01:59.7]} 28. Qxf6 {[%clk 0:03:37.3]} 28... gxf6 {[%clk 0:01:59.6]} 29. Ng4
{[%clk 0:03:36]} 29... Re4 {[%clk 0:01:54.7]} 30. Nxf6+ {[%clk 0:03:34.7]} 1-0

[Event "Live Chess"]
[Site "Chess.com"]
[Date "2023.05.20"]
[Round "-"]
[White "seasidecastle27"]
[Black "risinghelios"]
[Result "0-1"]
[WhiteElo "1802"]
[BlackElo "1965"]
[TimeControl "300"]
[EndTime "9:52:43 PDT"]
[Termination "risinghelios won on time"]

1. d4 {[%clk 0:04:56.1]} 1... e5 {[%clk 0:04:58]} 2. dxe5 {[%clk 0:04:54.1]}
2... Nc6 {[%clk 0:04:57.4]} 3. Nf3 {[%clk 0:04:52.4]} 3... Qe7 {[%clk 0:04:57]}
4. Qd5 {[%clk 0:04:44.1]} 4... Nb4 {[%clk 0:04:52]} 5. Qc4 {[%clk 0:04:33.3]}
5... b5 {[%clk 0:04:48]} 6. Qe4 {[%clk 0:04:26.4]} 6... d5 {[%clk 0:04:45]} 7.
Qf4 {[%clk 0:03:55.2]} 7... Nxc2+ {[%clk 0:04:42.5]} 8. Kd1 {[%clk 0:03:53.7]}
8... Nxa1 {[%clk 0:04:41.3]} 9. Nc3 {[%clk 0:03:52.2]} 9... c6 {[%clk 0:04:34]}
10. Be3 {[%clk 0:03:42.7]} 10... Be6 {[%clk 0:04:32.1]} 11. Nd4 {[%clk
0:03:35.4]} 11... Qd7 {[%clk 0:04:27.1]} 12. Kc1 {[%clk 0:03:28.1]} 12... g6
{[%clk 0:04:25.2]} 13. Kb1 {[%clk 0:03:18.7]} 13... Bg7 {[%clk 0:04:23.6]} 14.
Kxa1 {[%clk 0:03:17]} 14... Ne7 {[%clk 0:04:21.2]} 15. h4 {[%clk 0:03:00.2]}
15... c5 {[%clk 0:04:16.4]} 16. Nxe6 {[%clk 0:02:55.4]} 16... Qxe6 {[%clk
0:04:14.2]} 17. Bxc5 {[%clk 0:02:36.4]} 17... Bxe5 {[%clk 0:04:12.1]} 18. Qe3
{[%clk 0:02:30.3]} 18... Bxc3 {[%clk 0:04:10.2]} 19. bxc3 {[%clk 0:02:28.1]}
19... Qxe3 {[%clk 0:04:08.5]} 20. Bxe3 {[%clk 0:02:23.9]} 20... O-O {[%clk
0:04:07.6]} 21. h5 {[%clk 0:02:21.1]} 21... Nf5 {[%clk 0:04:06.6]} 22. Bc5
{[%clk 0:02:16.7]} 22... Rfc8 {[%clk 0:04:04.5]} 23. Bb4 {[%clk 0:02:10.4]}
23... a5 {[%clk 0:04:03.4]} 24. Ba3 {[%clk 0:02:04.1]} 24... d4 {[%clk
0:03:57.7]} 25. g4 {[%clk 0:01:54]} 25... Ng7 {[%clk 0:03:50]} 26. Bg2 {[%clk
0:01:48.1]} 26... Rab8 {[%clk 0:03:44.6]} 27. cxd4 {[%clk 0:01:35.7]} 27... Rc2
{[%clk 0:03:41.5]} 28. hxg6 {[%clk 0:01:27.9]} 28... hxg6 {[%clk 0:03:37.5]} 29.
Bd6 {[%clk 0:01:21.3]} 29... Rbc8 {[%clk 0:03:33.6]} 30. Bc5 {[%clk 0:01:15.5]}
30... Rxe2 {[%clk 0:03:28.9]} 31. Bb7 {[%clk 0:01:03.9]} 31... Rce8 {[%clk
0:03:24.6]} 32. Bc6 {[%clk 0:00:53.1]} 32... Re1+ {[%clk 0:03:22.6]} 33. Rxe1
{[%clk 0:00:50.7]} 33... Rxe1+ {[%clk 0:03:22.5]} 34. Kb2 {[%clk 0:00:48.7]}
34... Ne6 {[%clk 0:03:22.4]} 35. Bxb5 {[%clk 0:00:43]} 35... Nxc5 {[%clk
0:03:15]} 36. dxc5 {[%clk 0:00:41]} 36... Re5 {[%clk 0:03:14.7]} 37. c6 {[%clk
0:00:15.9]} 37... Rxb5+ {[%clk 0:03:12.7]} 38. Ka3 {[%clk 0:00:14.6]} 38... Rc5
{[%clk 0:03:12.6]} 39. Ka4 {[%clk 0:00:12.6]} 39... Rxc6 {[%clk 0:03:12.5]} 40.
Kxa5 {[%clk 0:00:11.7]} 40... Rf6 {[%clk 0:03:11.9]} 41. a4 {[%clk 0:00:10.2]}
41... Rxf2 {[%clk 0:03:11.8]} 42. Kb6 {[%clk 0:00:08.6]} 42... Rg2 {[%clk
0:03:11.5]} 43. a5 {[%clk 0:00:07.5]} 43... Rxg4 {[%clk 0:03:11.2]} 44. a6
{[%clk 0:00:06.6]} 44... Ra4 {[%clk 0:03:10.3]} 45. a7 {[%clk 0:00:05.8]} 45...
Rxa7 {[%clk 0:03:10]} 46. Kxa7 {[%clk 0:00:04.8]} 46... g5 {[%clk 0:03:09.9]}
0-1

[Event "Live Chess"]
[Site "Chess.com"]
[Date "2023.05.20"]
[Round "-"]
[White "MaximKris"]
[Black "JoshMcK"]
[Result "1-0"]
[WhiteElo "1827"]
[BlackElo "1552"]
[TimeControl "300"]
[EndTime "9:52:47 PDT"]
[Termination "MaximKris won by resignation"]

1. e4 {[%clk 0:04:58.1]} 1... c6 {[%clk 0:04:57.4]} 2. Nf3 {[%clk 0:04:57.2]}
2... d5 {[%clk 0:04:55.7]} 3. Nc3 {[%clk 0:04:56.6]} 3... Bg4 {[%clk 0:04:52.2]}
4. d4 {[%clk 0:04:55.1]} 4... Bxf3 {[%clk 0:04:48.8]} 5. Qxf3 {[%clk 0:04:55]}
5... e6 {[%clk 0:04:48.3]} 6. exd5 {[%clk 0:04:53.8]} 6... cxd5 {[%clk
0:04:47.4]} 7. Bf4 {[%clk 0:04:53.1]} 7... Nc6 {[%clk 0:04:45]} 8. Bb5 {[%clk
0:04:52.5]} 8... Nf6 {[%clk 0:04:41.3]} 9. O-O {[%clk 0:04:51.3]} 9... Bd6
{[%clk 0:04:36.9]} 10. Rfe1 {[%clk 0:04:46.3]} 10... O-O {[%clk 0:04:31.2]} 11.
Bxc6 {[%clk 0:04:43.4]} 11... bxc6 {[%clk 0:04:30.1]} 12. Bxd6 {[%clk
0:04:39.5]} 12... Qxd6 {[%clk 0:04:30]} 13. Qg3 {[%clk 0:04:38.5]} 13... Qxg3
{[%clk 0:04:28.5]} 14. hxg3 {[%clk 0:04:38.4]} 14... Rab8 {[%clk 0:04:23]} 15.
b3 {[%clk 0:04:35.8]} 15... Rfc8 {[%clk 0:04:21.8]} 16. Na4 {[%clk 0:04:28]}
16... Ne4 {[%clk 0:04:06.1]} 17. c4 {[%clk 0:04:23.4]} 17... Nd6 {[%clk
0:03:58.4]} 18. cxd5 {[%clk 0:04:09.7]} 18... cxd5 {[%clk 0:03:58.3]} 19. Nc5
{[%clk 0:04:08.9]} 19... Nf5 {[%clk 0:03:52.4]} 20. Rac1 {[%clk 0:03:28.4]}
20... Nxd4 {[%clk 0:03:50.1]} 21. Na6 {[%clk 0:03:06.5]} 21... Rxc1 {[%clk
0:03:44.3]} 22. Rxc1 {[%clk 0:03:04.9]} 22... Rd8 {[%clk 0:03:29.8]} 23. Rc7
{[%clk 0:02:53.6]} 23... Nb5 {[%clk 0:03:23.4]} 24. Rb7 {[%clk 0:02:46.7]} 24...
Nc3 {[%clk 0:03:21.8]} 25. Rxa7 {[%clk 0:02:41.4]} 25... Nxa2 {[%clk 0:03:20.4]}
26. Nc7 {[%clk 0:02:32.6]} 26... g6 {[%clk 0:03:14.3]} 27. Rxa2 {[%clk
0:02:28.1]} 27... Rc8 {[%clk 0:03:10.1]} 28. Nb5 {[%clk 0:02:24.1]} 28... Rb8
{[%clk 0:03:08.1]} 29. Nd4 {[%clk 0:02:21.2]} 29... e5 {[%clk 0:03:06.4]} 30.
Nc6 {[%clk 0:02:20.6]} 30... Rxb3 {[%clk 0:03:04.5]} 31. Nxe5 {[%clk 0:02:20]}
31... d4 {[%clk 0:03:00.3]} 32. Rd2 {[%clk 0:02:16.9]} 32... f6 {[%clk
0:02:50.7]} 33. Nf3 {[%clk 0:02:07.3]} 33... Rb1+ {[%clk 0:02:41.7]} 34. Kh2
{[%clk 0:02:03.8]} 34... h5 {[%clk 0:02:33.9]} 35. Rxd4 {[%clk 0:02:02.4]} 35...
Kg7 {[%clk 0:02:32.6]} 36. Rd7+ {[%clk 0:01:58.9]} 36... Kh6 {[%clk 0:02:30.7]}
37. Rd6 {[%clk 0:01:53.5]} 37... f5 {[%clk 0:02:28.8]} 38. Nh4 {[%clk
0:01:50.9]} 38... Kh7 {[%clk 0:02:23.7]} 39. Rxg6 {[%clk 0:01:48.8]} 1-0

[Event "Live Chess"]
[Site "Chess.com"]
[Date "2023.05.20"]
[Round "-"]
[White "PaulHumphreys"]
[Black "OBrightwell100"]
[Result "1-0"]
[WhiteElo "1373"]
[BlackElo "1314"]
[TimeControl "300"]
[EndTime "9:52:51 PDT"]
[Termination "PaulHumphreys won by resignation"]

1. d4 {[%clk 0:04:59.2]} 1... d5 {[%clk 0:04:58.8]} 2. Nc3 {[%clk 0:04:55.7]}
2... a6 {[%clk 0:04:54.6]} 3. Bf4 {[%clk 0:04:52.5]} 3... Nf6 {[%clk 0:04:53.9]}
4. e3 {[%clk 0:04:50.3]} 4... e6 {[%clk 0:04:52.4]} 5. Nf3 {[%clk 0:04:47.7]}
5... Bd6 {[%clk 0:04:51.5]} 6. Ne5 {[%clk 0:04:46]} 6... O-O {[%clk 0:04:45.3]}
7. g4 {[%clk 0:04:42.2]} 7... Nbd7 {[%clk 0:04:41.4]} 8. g5 {[%clk 0:04:34.9]}
8... Ne4 {[%clk 0:04:37.4]} 9. Nxe4 {[%clk 0:04:31.6]} 9... dxe4 {[%clk
0:04:37.3]} 10. h4 {[%clk 0:04:20.9]} 10... f6 {[%clk 0:04:36.3]} 11. gxf6
{[%clk 0:04:13.9]} 11... Qxf6 {[%clk 0:04:34.7]} 12. Ng4 {[%clk 0:04:04]} 12...
Qe7 {[%clk 0:04:20.1]} 13. Bg5 {[%clk 0:03:58.6]} 13... Qf7 {[%clk 0:04:11.7]}
14. Bg2 {[%clk 0:03:42.1]} 14... h5 {[%clk 0:04:08.8]} 15. Bxe4 {[%clk
0:03:33.3]} 15... hxg4 {[%clk 0:04:06.1]} 16. Qe2 {[%clk 0:03:21.2]} 16... e5
{[%clk 0:03:50.8]} 17. O-O-O {[%clk 0:03:13.3]} 17... exd4 {[%clk 0:03:47.2]}
18. Rdf1 {[%clk 0:02:51.5]} 18... dxe3 {[%clk 0:03:40.5]} 19. fxe3 {[%clk
0:02:49.7]} 19... Qxa2 {[%clk 0:03:40]} 20. Rxf8+ {[%clk 0:02:47.1]} 20... Kxf8
{[%clk 0:03:38.6]} 21. Rf1+ {[%clk 0:02:23.8]} 21... Kg8 {[%clk 0:03:35.9]} 22.
Qd3 {[%clk 0:02:04.7]} 22... Ne5 {[%clk 0:03:31]} 23. Bd5+ {[%clk 0:01:57.4]}
23... Qxd5 {[%clk 0:03:16.9]} 24. Qxd5+ {[%clk 0:01:55.4]} 24... Kh7 {[%clk
0:03:14.7]} 25. Qe4+ {[%clk 0:01:44.2]} 25... Ng6 {[%clk 0:03:12.1]} 26. h5
{[%clk 0:01:39.2]} 26... Kg8 {[%clk 0:03:10.5]} 27. Qxg6 {[%clk 0:01:21.8]}
27... Bd7 {[%clk 0:03:04]} 28. h6 {[%clk 0:01:13.9]} 1-0

[Event "Live Chess"]
[Site "Chess.com"]
[Date "2023.05.20"]
[Round "-"]
[White "vovanada"]
[Black "VovaOvchar1990"]
[Result "1-0"]
[WhiteElo "806"]
[BlackElo "1186"]
[TimeControl "300"]
[EndTime "9:52:59 PDT"]
[Termination "vovanada won on time"]

1. d4 {[%clk 0:04:57.4]} 1... d5 {[%clk 0:04:58.2]} 2. Bf4 {[%clk 0:04:56.3]}
2... Bf5 {[%clk 0:04:56]} 3. e3 {[%clk 0:04:55.6]} 3... f6 {[%clk 0:04:54.6]} 4.
Nf3 {[%clk 0:04:54.6]} 4... Nc6 {[%clk 0:04:52.5]} 5. c3 {[%clk 0:04:50]} 5...
e6 {[%clk 0:04:45.6]} 6. Bb5 {[%clk 0:04:48.4]} 6... a6 {[%clk 0:04:42.4]} 7.
Bxc6+ {[%clk 0:04:47]} 7... bxc6 {[%clk 0:04:42.3]} 8. Qa4 {[%clk 0:04:30.6]}
8... Qd7 {[%clk 0:04:37.6]} 9. Nbd2 {[%clk 0:04:22.9]} 9... Bd6 {[%clk
0:04:31.8]} 10. Bg3 {[%clk 0:04:15.5]} 10... Bxg3 {[%clk 0:04:29.1]} 11. hxg3
{[%clk 0:04:15.4]} 11... Bd3 {[%clk 0:04:27.1]} 12. O-O-O {[%clk 0:04:04.3]}
12... Ne7 {[%clk 0:04:19]} 13. Nb3 {[%clk 0:03:45.8]} 13... Rb8 {[%clk
0:04:14.2]} 14. Rxd3 {[%clk 0:03:41.4]} 14... Nf5 {[%clk 0:03:38.8]} 15. Nc5
{[%clk 0:03:31.7]} 15... Qd6 {[%clk 0:03:35.6]} 16. Qxa6 {[%clk 0:03:25.6]}
16... O-O {[%clk 0:03:32.8]} 17. g4 {[%clk 0:03:12.8]} 17... Ne7 {[%clk
0:03:24.2]} 18. e4 {[%clk 0:02:58.6]} 18... dxe4 {[%clk 0:03:19.4]} 19. Nxe4
{[%clk 0:02:58.5]} 19... Qd5 {[%clk 0:03:13.3]} 20. Re1 {[%clk 0:02:45.9]} 20...
Ra8 {[%clk 0:03:11.1]} 21. c4 {[%clk 0:02:12.7]} 21... Qd7 {[%clk 0:02:10.1]}
22. Qb7 {[%clk 0:01:59.2]} 22... Rfb8 {[%clk 0:02:08.1]} 23. Qxb8+ {[%clk
0:01:35.5]} 23... Rxb8 {[%clk 0:02:06]} 24. Nc5 {[%clk 0:01:30.4]} 24... Qd6
{[%clk 0:02:02.2]} 25. Rxe6 {[%clk 0:01:23]} 25... Qf4+ {[%clk 0:01:56.1]} 26.
Kb1 {[%clk 0:01:16.2]} 26... Ng6 {[%clk 0:01:35.7]} 27. Rxc6 {[%clk 0:01:03.5]}
27... Qxg4 {[%clk 0:01:28.4]} 28. g3 {[%clk 0:00:57.8]} 28... Qh3 {[%clk
0:01:08.7]} 29. b3 {[%clk 0:00:55]} 29... Qf1+ {[%clk 0:01:03.4]} 30. Kc2 {[%clk
0:00:52]} 30... Qe2+ {[%clk 0:01:01.4]} 31. Kc3 {[%clk 0:00:50.4]} 31... Qxf2
{[%clk 0:00:52.5]} 32. Rxc7 {[%clk 0:00:47.2]} 32... Qxg3 {[%clk 0:00:48.8]} 33.
Ne6 {[%clk 0:00:40]} 33... Qg2 {[%clk 0:00:17.5]} 34. Rxg7+ {[%clk 0:00:35.4]}
34... Kh8 {[%clk 0:00:15.6]} 35. Rc7 {[%clk 0:00:32.4]} 35... Re8 {[%clk
0:00:11.1]} 36. Rc6 {[%clk 0:00:28.8]} 36... Qf2 {[%clk 0:00:07.1]} 37. a4
{[%clk 0:00:26.8]} 1-0

[Event "Live Chess"]
[Site "Chess.com"]
[Date "2023.05.20"]
[Round "-"]
[White "ReeceHockton"]
[Black "Fazer180"]
[Result "0-1"]
[WhiteElo "321"]
[BlackElo "1716"]
[TimeControl "300"]
[EndTime "9:53:00 PDT"]
[Termination "Fazer180 won by resignation"]

1. d4 {[%clk 0:04:52.3]} 1... e6 {[%clk 0:04:59.9]} 2. e4 {[%clk 0:04:48.3]}
2... d5 {[%clk 0:04:59.8]} 3. f3 {[%clk 0:04:44.4]} 3... dxe4 {[%clk 0:04:49.4]}
4. fxe4 {[%clk 0:04:41.9]} 4... Qh4+ {[%clk 0:04:39.5]} 5. g3 {[%clk 0:04:38.8]}
5... Qxe4+ {[%clk 0:04:37.4]} 6. Be3 {[%clk 0:04:36.2]} 6... Qxe3+ {[%clk
0:04:30.2]} 7. Ne2 {[%clk 0:04:34.5]} 7... Nc6 {[%clk 0:04:23.3]} 8. Nc3 {[%clk
0:04:30.8]} 8... Bb4 {[%clk 0:04:20]} 9. Qd2 {[%clk 0:04:28.9]} 9... Qxd2+
{[%clk 0:04:14.2]} 10. Kxd2 {[%clk 0:04:27.9]} 10... Bxc3+ {[%clk 0:04:13.9]}
11. Kxc3 {[%clk 0:04:27]} 11... Nf6 {[%clk 0:04:11.7]} 12. Rd1 {[%clk
0:04:25.1]} 12... Ne4+ {[%clk 0:04:09.6]} 13. Kd3 {[%clk 0:04:23.4]} 13... Nf2+
{[%clk 0:04:08.6]} 14. Ke3 {[%clk 0:04:19.6]} 0-1

[Event "Live Chess"]
[Site "Chess.com"]
[Date "2023.05.20"]
[Round "-"]
[White "defenderalist"]
[Black "Doge_Dandolo"]
[Result "0-1"]
[WhiteElo "1590"]
[BlackElo "2150"]
[TimeControl "300"]
[EndTime "9:53:05 PDT"]
[Termination "Doge_Dandolo won by resignation"]

1. e4 {[%clk 0:04:55.1]} 1... c6 {[%clk 0:04:58.8]} 2. Nf3 {[%clk 0:04:54.1]}
2... d5 {[%clk 0:04:56.6]} 3. exd5 {[%clk 0:04:52.9]} 3... cxd5 {[%clk 0:04:55]}
4. d4 {[%clk 0:04:52.8]} 4... Nc6 {[%clk 0:04:53.9]} 5. Bb5 {[%clk 0:04:52.3]}
5... Bg4 {[%clk 0:04:51.2]} 6. h3 {[%clk 0:04:50.1]} 6... Bxf3 {[%clk
0:04:49.8]} 7. Qxf3 {[%clk 0:04:49.1]} 7... e6 {[%clk 0:04:48.9]} 8. Nc3 {[%clk
0:04:46.6]} 8... a6 {[%clk 0:04:46]} 9. Ba4 {[%clk 0:04:42.6]} 9... Bd6 {[%clk
0:04:42.9]} 10. O-O {[%clk 0:04:40.5]} 10... Qc7 {[%clk 0:04:41]} 11. a3 {[%clk
0:04:34.9]} 11... Ne7 {[%clk 0:04:30.8]} 12. b4 {[%clk 0:04:33.2]} 12... b5
{[%clk 0:04:24.9]} 13. Bb3 {[%clk 0:04:31.6]} 13... Nxd4 {[%clk 0:04:12.5]} 14.
Qg4 {[%clk 0:04:25]} 14... Qxc3 {[%clk 0:04:08]} 15. Qxg7 {[%clk 0:04:12.8]}
15... Ne2+ {[%clk 0:04:02]} 0-1

[Event "Live Chess"]
[Site "Chess.com"]
[Date "2023.05.20"]
[Round "-"]
[White "Conradical12"]
[Black "RedRook90"]
[Result "0-1"]
[WhiteElo "1509"]
[BlackElo "1964"]
[TimeControl "300"]
[EndTime "9:53:07 PDT"]
[Termination "RedRook90 won by checkmate"]

1. e4 {[%clk 0:04:59]} 1... c6 {[%clk 0:04:59.4]} 2. d4 {[%clk 0:04:57.9]} 2...
d5 {[%clk 0:04:59]} 3. f3 {[%clk 0:04:57.4]} 3... Bd7 {[%clk 0:04:58]} 4. exd5
{[%clk 0:04:55.9]} 4... cxd5 {[%clk 0:04:57.2]} 5. c4 {[%clk 0:04:55.8]} 5...
dxc4 {[%clk 0:04:56.1]} 6. Nc3 {[%clk 0:04:55.7]} 6... b5 {[%clk 0:04:53.3]} 7.
a3 {[%clk 0:04:52.6]} 7... e6 {[%clk 0:04:48.4]} 8. Bf4 {[%clk 0:04:49.8]} 8...
Nf6 {[%clk 0:04:46.8]} 9. Qe2 {[%clk 0:04:48.5]} 9... Be7 {[%clk 0:04:42.8]} 10.
O-O-O {[%clk 0:04:48]} 10... O-O {[%clk 0:04:41.9]} 11. h4 {[%clk 0:04:47.4]}
11... a5 {[%clk 0:04:40.7]} 12. g4 {[%clk 0:04:28.9]} 12... b4 {[%clk
0:04:39.6]} 13. Ne4 {[%clk 0:04:27.5]} 13... Nxe4 {[%clk 0:04:33.5]} 14. Qxe4
{[%clk 0:04:25.9]} 14... Bc6 {[%clk 0:04:31.6]} 15. d5 {[%clk 0:04:22.6]} 15...
Bxd5 {[%clk 0:04:29.2]} 16. Qc2 {[%clk 0:04:16.9]} 16... bxa3 {[%clk 0:04:27.3]}
17. Bxc4 {[%clk 0:04:14.6]} 17... axb2+ {[%clk 0:04:23.1]} 18. Kxb2 {[%clk
0:04:13.6]} 18... Qb6+ {[%clk 0:04:15.3]} 19. Ka1 {[%clk 0:04:09.2]} 19... Bxc4
{[%clk 0:04:10.3]} 20. Qxc4 {[%clk 0:04:07.9]} 20... Qb4 {[%clk 0:04:09.2]} 21.
Qxb4 {[%clk 0:04:04.8]} 21... axb4+ {[%clk 0:04:08]} 22. Kb1 {[%clk 0:04:04.7]}
22... Nc6 {[%clk 0:04:05.5]} 23. Rd7 {[%clk 0:04:02.3]} 23... Rfd8 {[%clk
0:04:03.2]} 24. Rc7 {[%clk 0:03:59.7]} 24... Rac8 {[%clk 0:03:59.7]} 25. Rb7
{[%clk 0:03:56.1]} 25... Nd4 {[%clk 0:03:55.9]} 26. Rxe7 {[%clk 0:03:53.1]}
26... Rc2 {[%clk 0:03:47]} 27. h5 {[%clk 0:03:43.6]} 27... b3 {[%clk 0:03:43.5]}
28. h6 {[%clk 0:03:31.2]} 28... Nb5 {[%clk 0:03:11.9]} 29. Nh3 {[%clk
0:03:12.1]} 29... Nc3+ {[%clk 0:03:06.9]} 30. Ka1 {[%clk 0:03:08.5]} 30... Ra2#
{[%clk 0:03:06.8]} 0-1

[Event "Live Chess"]
[Site "Chess.com"]
[Date "2023.05.20"]
[Round "-"]
[White "zdanevych"]
[Black "ramses-IIG"]
[Result "1-0"]
[WhiteElo "1530"]
[BlackElo "744"]
[TimeControl "300"]
[EndTime "9:53:07 PDT"]
[Termination "zdanevych won by resignation"]

1. d4 {[%clk 0:04:58.9]} 1... d5 {[%clk 0:04:58.7]} 2. c4 {[%clk 0:04:58]} 2...
dxc4 {[%clk 0:04:56.3]} 3. e4 {[%clk 0:04:56.9]} 3... b5 {[%clk 0:04:56.2]} 4.
a4 {[%clk 0:04:55.5]} 4... c6 {[%clk 0:04:53.8]} 5. axb5 {[%clk 0:04:54.4]} 5...
cxb5 {[%clk 0:04:53.6]} 6. Nc3 {[%clk 0:04:53.5]} 6... Ba6 {[%clk 0:04:49.1]} 7.
Nf3 {[%clk 0:04:47.5]} 7... f6 {[%clk 0:04:44.6]} 8. b3 {[%clk 0:04:45.1]} 8...
e6 {[%clk 0:04:25.5]} 9. bxc4 {[%clk 0:04:35.5]} 9... bxc4 {[%clk 0:04:25.4]}
10. Bxc4 {[%clk 0:04:25.4]} 10... Bxc4 {[%clk 0:04:23.4]} 11. Qa4+ {[%clk
0:04:24.9]} 11... Nc6 {[%clk 0:03:56.6]} 12. Qxc6+ {[%clk 0:04:19.7]} 1-0